[Event "*** Titled Tuesday Blitz"]
[Site "Chess.com"]
[Date "2020.05.12"]
[Round "10"]
[White "XDPS"]
[Black "AliKa2810"]
[Result "1-0"]
[WhiteElo "2689"]
[BlackElo "2547"]
[TimeControl "180+1"]
[EndTime "11:55:21 PDT"]
[Termination "XDPS won on time"]

1. d4 {[%clk 0:03:00.9]} 1... Nf6 {[%clk 0:02:59.2]} 2. Nf3 {[%clk 0:02:54]}
2... d5 {[%clk 0:02:59]} 3. Bf4 {[%clk 0:02:53.4]} 3... e6 {[%clk 0:02:56.7]} 4.
e3 {[%clk 0:02:51.6]} 4... Bd6 {[%clk 0:02:56.1]} 5. Bg3 {[%clk 0:02:50.5]} 5...
c5 {[%clk 0:02:55.3]} 6. c3 {[%clk 0:02:50]} 6... O-O {[%clk 0:02:55.2]} 7. Nbd2
{[%clk 0:02:48.6]} 7... Nc6 {[%clk 0:02:55.4]} 8. Bb5 {[%clk 0:02:47.6]} 8...
Qe7 {[%clk 0:02:49.1]} 9. Bxc6 {[%clk 0:02:41.6]} 9... bxc6 {[%clk 0:02:47.9]}
10. Qa4 {[%clk 0:02:41.4]} 10... cxd4 {[%clk 0:02:45.5]} 11. cxd4 {[%clk
0:02:41.1]} 11... Bxg3 {[%clk 0:02:40.8]} 12. hxg3 {[%clk 0:02:40.4]} 12... a5
{[%clk 0:02:40.8]} 13. Qc2 {[%clk 0:02:33.6]} 13... Ba6 {[%clk 0:02:40.4]} 14.
g4 {[%clk 0:02:33.6]} 14... g6 {[%clk 0:02:35.1]} 15. Ne5 {[%clk 0:02:29.4]}
15... Rfc8 {[%clk 0:02:33.7]} 16. Rc1 {[%clk 0:02:19]} 16... Kg7 {[%clk
0:01:26]} 17. f4 {[%clk 0:02:14.1]} 17... Rc7 {[%clk 0:01:18.3]} 18. g5 {[%clk
0:02:06.1]} 18... Ng8 {[%clk 0:01:11.3]} 19. g4 {[%clk 0:01:58.9]} 19... c5
{[%clk 0:01:07.3]} 20. dxc5 {[%clk 0:01:55.2]} 20... Rac8 {[%clk 0:01:06.5]} 21.
c6 {[%clk 0:01:33.4]} 21... Bb5 {[%clk 0:00:56.9]} 22. Qc3 {[%clk 0:01:00.2]}
22... Qb4 {[%clk 0:00:55.9]} 23. Nb3 {[%clk 0:00:35.4]} 23... Bxc6 {[%clk
0:00:47.7]} 24. Nxa5 {[%clk 0:00:35.1]} 24... Qxc3+ {[%clk 0:00:42.7]} 25. Rxc3
{[%clk 0:00:36]} 25... Bb5 {[%clk 0:00:40.9]} 26. Rxc7 {[%clk 0:00:35.8]} 26...
Rxc7 {[%clk 0:00:40.8]} 27. Kd2 {[%clk 0:00:36.3]} 27... f6 {[%clk 0:00:35]} 28.
Nf3 {[%clk 0:00:33]} 28... Ra7 {[%clk 0:00:23.5]} 29. b4 {[%clk 0:00:32.7]}
29... Ra6 {[%clk 0:00:13.2]} 30. Rc1 {[%clk 0:00:30.1]} 30... fxg5 {[%clk
0:00:12.8]} 31. Rc7+ {[%clk 0:00:27.5]} 31... Kf8 {[%clk 0:00:12.2]} 32. Nxg5
{[%clk 0:00:26.6]} 32... h6 {[%clk 0:00:12.1]} 33. Nh7+ {[%clk 0:00:19.7]} 33...
Ke8 {[%clk 0:00:12.3]} 34. Rg7 {[%clk 0:00:20.2]} 34... Ne7 {[%clk 0:00:12.1]}
35. Kc3 {[%clk 0:00:12.4]} 35... Ra7 {[%clk 0:00:11.5]} 36. Nf6+ {[%clk
0:00:08.5]} 36... Kf8 {[%clk 0:00:11.1]} 37. Rh7 {[%clk 0:00:08.9]} 37... Rc7+
{[%clk 0:00:09.1]} 38. Kb2 {[%clk 0:00:09.1]} 38... Bd3 {[%clk 0:00:08.1]} 39.
Nb3 {[%clk 0:00:09.1]} 39... g5 {[%clk 0:00:04]} 40. Rxh6 {[%clk 0:00:09.4]}
40... gxf4 {[%clk 0:00:03.8]} 41. exf4 {[%clk 0:00:09.6]} 41... Rc2+ {[%clk
0:00:03.3]} 42. Ka3 {[%clk 0:00:09.5]} 42... Rc7 {[%clk 0:00:03.9]} 43. g5
{[%clk 0:00:08.7]} 43... Kf7 {[%clk 0:00:03.3]} 44. Nc5 {[%clk 0:00:08.2]} 44...
Ra7+ {[%clk 0:00:02.9]} 45. Kb2 {[%clk 0:00:08.3]} 45... Bf5 {[%clk 0:00:02.6]}
46. a4 {[%clk 0:00:08]} 46... Nc6 {[%clk 0:00:02.7]} 47. Kc3 {[%clk 0:00:07.4]}
47... d4+ {[%clk 0:00:02.5]} 48. Kc4 {[%clk 0:00:07]} 48... d3 {[%clk
0:00:02.9]} 49. Nxd3 {[%clk 0:00:04.8]} 49... Rxa4 {[%clk 0:00:01.8]} 50. Ne5+
{[%clk 0:00:04.4]} 50... Nxe5+ {[%clk 0:00:01.7]} 51. fxe5 {[%clk 0:00:05.3]}
51... Ra1 {[%clk 0:00:02.2]} 52. Kc5 {[%clk 0:00:05.2]} 52... Rc1+ {[%clk
0:00:02.7]} 53. Kb6 {[%clk 0:00:05.6]} 53... Rb1 {[%clk 0:00:02.5]} 54. Rh4
{[%clk 0:00:05.3]} 54... Kg6 {[%clk 0:00:01.9]} 55. Rd4 {[%clk 0:00:05.6]} 55...
Kxg5 {[%clk 0:00:02.4]} 56. Nd7 {[%clk 0:00:05.5]} 56... Bh3 {[%clk 0:00:01.1]}
57. b5 {[%clk 0:00:05.5]} 57... Bf1 {[%clk 0:00:01.1]} 58. Kc7 {[%clk
0:00:05.5]} 58... Rxb5 {[%clk 0:00:01.2]} 59. Kd6 {[%clk 0:00:05.8]} 59... Kf5
{[%clk 0:00:01.5]} 60. Rd2 {[%clk 0:00:04.6]} 60... Rd5+ {[%clk 0:00:01.5]} 61.
Rxd5 {[%clk 0:00:04.7]} 61... exd5 {[%clk 0:00:02.4]} 62. e6 {[%clk 0:00:05.2]}
62... Be2 {[%clk 0:00:01.4]} 63. e7 {[%clk 0:00:02.9]} 63... Bh5 {[%clk
0:00:02]} 64. Kxd5 {[%clk 0:00:03.4]} 64... Be8 {[%clk 0:00:01.3]} 65. Kd6
{[%clk 0:00:04.3]} 65... Kg6 {[%clk 0:00:01.1]} 66. Ke6 {[%clk 0:00:04.4]} 66...
Kg7 {[%clk 0:00:01.1]} 67. Nf6 {[%clk 0:00:04.1]} 67... Ba4 {[%clk 0:00:01.3]}
68. Nd7 {[%clk 0:00:03.8]} 68... Bb3+ {[%clk 0:00:01.6]} 69. Kd6 {[%clk
0:00:03.9]} 69... Bf7 {[%clk 0:00:01.5]} 70. Kc7 {[%clk 0:00:04.4]} 70... Be8
{[%clk 0:00:01.4]} 71. Kd8 {[%clk 0:00:05.3]} 71... Bh5 {[%clk 0:00:01.1]} 72.
Ne5 {[%clk 0:00:05.7]} 1-0

[Event "*** Titled Tuesday Blitz"]
[Site "Chess.com"]
[Date "2020.05.12"]
[Round "10"]
[White "Kimster98"]
[Black "pedroholly22"]
[Result "0-1"]
[WhiteElo "2562"]
[BlackElo "2483"]
[TimeControl "180+1"]
[EndTime "11:55:24 PDT"]
[Termination "pedroholly22 won by resignation"]

1. d4 {[%clk 0:03:00.9]} 1... Nf6 {[%clk 0:02:54.1]} 2. Bf4 {[%clk 0:03:00.3]}
2... e6 {[%clk 0:02:52.8]} 3. e3 {[%clk 0:03:00.2]} 3... d5 {[%clk 0:02:52.6]}
4. Nd2 {[%clk 0:02:59.9]} 4... c5 {[%clk 0:02:53.5]} 5. c3 {[%clk 0:02:59.5]}
5... Nc6 {[%clk 0:02:54]} 6. Ngf3 {[%clk 0:02:58.4]} 6... cxd4 {[%clk
0:02:50.7]} 7. exd4 {[%clk 0:02:59.3]} 7... Nh5 {[%clk 0:02:50.5]} 8. Be3 {[%clk
0:02:50.4]} 8... Bd6 {[%clk 0:02:49.7]} 9. Ne5 {[%clk 0:02:44.6]} 9... g6 {[%clk
0:02:48]} 10. Nd3 {[%clk 0:02:44.7]} 10... O-O {[%clk 0:02:44.9]} 11. g3 {[%clk
0:02:04.1]} 11... f5 {[%clk 0:02:42.6]} 12. Bh6 {[%clk 0:02:00.7]} 12... Rf7
{[%clk 0:02:40.6]} 13. Nf3 {[%clk 0:02:00]} 13... Bd7 {[%clk 0:02:35.4]} 14. Bg2
{[%clk 0:01:34.3]} 14... Qb6 {[%clk 0:02:33.5]} 15. O-O {[%clk 0:01:22.5]} 15...
Re8 {[%clk 0:02:30.3]} 16. Qe2 {[%clk 0:01:17.8]} 16... Qc7 {[%clk 0:02:24.6]}
17. Rfe1 {[%clk 0:01:15.6]} 17... Nf6 {[%clk 0:02:21]} 18. Bf4 {[%clk
0:01:14.3]} 18... Ne4 {[%clk 0:02:18.3]} 19. Bxd6 {[%clk 0:01:13.5]} 19... Qxd6
{[%clk 0:02:16.4]} 20. Nfe5 {[%clk 0:01:14.1]} 20... Nxe5 {[%clk 0:02:16.2]} 21.
Nxe5 {[%clk 0:01:13.3]} 21... Rg7 {[%clk 0:02:16.2]} 22. f3 {[%clk 0:01:12.8]}
22... Nf6 {[%clk 0:02:16.3]} 23. Qe3 {[%clk 0:01:02.6]} 23... a6 {[%clk
0:02:15.2]} 24. Nd3 {[%clk 0:00:48.5]} 24... Bb5 {[%clk 0:02:12.9]} 25. Qe5
{[%clk 0:00:48.5]} 25... Qxe5 {[%clk 0:02:10.9]} 26. Nxe5 {[%clk 0:00:49.4]}
26... Nd7 {[%clk 0:02:09.9]} 27. a4 {[%clk 0:00:42.1]} 27... Nxe5 {[%clk
0:02:09.6]} 28. Rxe5 {[%clk 0:00:43]} 28... Bd7 {[%clk 0:02:08.6]} 29. a5 {[%clk
0:00:40.4]} 29... Rc8 {[%clk 0:02:07.2]} 30. Kf2 {[%clk 0:00:40]} 30... Kf8
{[%clk 0:02:06.5]} 31. Ke3 {[%clk 0:00:39.3]} 31... Ke7 {[%clk 0:02:06.9]} 32.
Kd2 {[%clk 0:00:38.6]} 32... Kd6 {[%clk 0:02:06.9]} 33. Rh1 {[%clk 0:00:32.3]}
33... g5 {[%clk 0:02:06.8]} 34. Rhe1 {[%clk 0:00:29.3]} 34... h5 {[%clk
0:02:06.1]} 35. Bf1 {[%clk 0:00:29.1]} 35... h4 {[%clk 0:02:04.4]} 36. gxh4
{[%clk 0:00:24]} 36... gxh4 {[%clk 0:02:04.2]} 37. Ke3 {[%clk 0:00:24.6]} 37...
Rg1 {[%clk 0:02:02.7]} 38. Kf2 {[%clk 0:00:24.8]} 38... Rcg8 {[%clk 0:02:01.6]}
39. Bh3 {[%clk 0:00:23.2]} 39... R1g6 {[%clk 0:01:53]} 40. Ra1 {[%clk
0:00:21.2]} 40... R6g7 {[%clk 0:01:46.1]} 41. Ree1 {[%clk 0:00:20.7]} 41... f4
{[%clk 0:01:45.2]} 42. Rg1 {[%clk 0:00:20.7]} 42... Rxg1 {[%clk 0:01:39.4]} 43.
Rxg1 {[%clk 0:00:21.6]} 43... Rxg1 {[%clk 0:01:39.1]} 44. Kxg1 {[%clk
0:00:22.5]} 44... Kc6 {[%clk 0:01:38.8]} 45. Bf1 {[%clk 0:00:22.6]} 45... Kd6
{[%clk 0:01:36.5]} 46. Kg2 {[%clk 0:00:22.8]} 46... e5 {[%clk 0:01:37.4]} 47.
dxe5+ {[%clk 0:00:20.6]} 47... Kxe5 {[%clk 0:01:38.3]} 48. Kf2 {[%clk
0:00:21.1]} 48... d4 {[%clk 0:01:38]} 49. c4 {[%clk 0:00:19.2]} 49... Bf5 {[%clk
0:01:36.6]} 50. Ke1 {[%clk 0:00:19.3]} 50... d3 {[%clk 0:01:36.4]} 51. Kd2
{[%clk 0:00:19.7]} 51... Kd4 {[%clk 0:01:36.3]} 52. c5 {[%clk 0:00:13.8]} 52...
Kxc5 {[%clk 0:00:58.3]} 53. Bxd3 {[%clk 0:00:14.7]} 53... Bd7 {[%clk 0:00:54.7]}
54. Kc3 {[%clk 0:00:14.3]} 54... Bc6 {[%clk 0:00:53.5]} 55. b4+ {[%clk
0:00:14.6]} 55... Kd6 {[%clk 0:00:53.3]} 56. Be2 {[%clk 0:00:15]} 56... Ke5
{[%clk 0:00:53.8]} 57. Bd1 {[%clk 0:00:15.5]} 57... Bd5 {[%clk 0:00:53.3]} 58.
Kd3 {[%clk 0:00:15.3]} 58... Ba2 {[%clk 0:00:52]} 59. Kc3 {[%clk 0:00:15]} 59...
Kd5 {[%clk 0:00:52]} 60. Be2 {[%clk 0:00:14]} 60... Ke5 {[%clk 0:00:49.9]} 61.
Bc4 {[%clk 0:00:12.9]} 61... Bb1 {[%clk 0:00:45.8]} 62. Bf7 {[%clk 0:00:12.3]}
62... Bf5 {[%clk 0:00:43.5]} 63. Bc4 {[%clk 0:00:12.1]} 63... Bd7 {[%clk
0:00:42.9]} 64. Bd3 {[%clk 0:00:11.2]} 64... Bc6 {[%clk 0:00:42.8]} 65. Be2
{[%clk 0:00:11.8]} 65... Bd5 {[%clk 0:00:31.2]} 66. Bd1 {[%clk 0:00:12]} 66...
Bc6 {[%clk 0:00:28.8]} 67. Kc4 {[%clk 0:00:12.3]} 67... Bd5+ {[%clk 0:00:24.7]}
68. Kc5 {[%clk 0:00:12.7]} 68... Bc6 {[%clk 0:00:24.9]} 69. Be2 {[%clk
0:00:12.4]} 69... Bd5 {[%clk 0:00:24.6]} 70. Kb6 {[%clk 0:00:12.3]} 70... Kd4
{[%clk 0:00:23.1]} 71. Bd1 {[%clk 0:00:09.8]} 71... Ke3 {[%clk 0:00:22.6]} 72.
b5 {[%clk 0:00:08.8]} 72... axb5 {[%clk 0:00:21.8]} 73. Kxb5 {[%clk 0:00:08.8]}
73... Bxf3 {[%clk 0:00:20.6]} 74. Bxf3 {[%clk 0:00:04]} 74... Kxf3 {[%clk
0:00:21.5]} 75. Kb6 {[%clk 0:00:04.8]} 75... Ke2 {[%clk 0:00:20.9]} 76. Kxb7
{[%clk 0:00:05.7]} 76... f3 {[%clk 0:00:21.7]} 77. a6 {[%clk 0:00:06.6]} 77...
f2 {[%clk 0:00:22.3]} 78. a7 {[%clk 0:00:07.5]} 78... f1=Q {[%clk 0:00:22.3]}
79. a8=Q {[%clk 0:00:08.4]} 79... Qf3+ {[%clk 0:00:21.9]} 80. Ka7 {[%clk
0:00:09.3]} 80... Qxa8+ {[%clk 0:00:21.2]} 81. Kxa8 {[%clk 0:00:10.2]} 81... Kf2
{[%clk 0:00:21.7]} 82. Kb7 {[%clk 0:00:11]} 82... Kg2 {[%clk 0:00:22.6]} 0-1

[Event "*** Titled Tuesday Blitz"]
[Site "Chess.com"]
[Date "2020.05.12"]
[Round "10"]
[White "eightbyeightchess"]
[Black "SophieNikoladze"]
[Result "1-0"]
[WhiteElo "2384"]
[BlackElo "2162"]
[TimeControl "180+1"]
[EndTime "11:55:36 PDT"]
[Termination "eightbyeightchess won on time"]

1. e4 {[%clk 0:03:00.8]} 1... d6 {[%clk 0:02:59.4]} 2. d4 {[%clk 0:02:57]} 2...
Nf6 {[%clk 0:02:58.7]} 3. Nc3 {[%clk 0:02:55.7]} 3... e5 {[%clk 0:02:58.4]} 4.
f4 {[%clk 0:02:50.6]} 4... Nbd7 {[%clk 0:02:55.2]} 5. Nf3 {[%clk 0:02:48.6]}
5... exd4 {[%clk 0:02:54.8]} 6. Nxd4 {[%clk 0:02:47.8]} 6... Nc5 {[%clk
0:02:55.3]} 7. Bc4 {[%clk 0:02:43]} 7... Ncxe4 {[%clk 0:02:51.2]} 8. Nxe4 {[%clk
0:02:39.6]} 8... Nxe4 {[%clk 0:02:51.1]} 9. Qh5 {[%clk 0:02:30.1]} 9... g6
{[%clk 0:02:25.9]} 10. Bxf7+ {[%clk 0:02:22.4]} 10... Kxf7 {[%clk 0:02:21.5]}
11. Qd5+ {[%clk 0:02:21.9]} 11... Kg7 {[%clk 0:02:21.3]} 12. Qxe4 {[%clk
0:02:21.5]} 12... Qe7 {[%clk 0:02:20.4]} 13. Qxe7+ {[%clk 0:02:19.5]} 13... Bxe7
{[%clk 0:02:20.6]} 14. O-O {[%clk 0:02:17.3]} 14... Bf6 {[%clk 0:02:21]} 15. c3
{[%clk 0:02:09]} 15... Bd7 {[%clk 0:02:18]} 16. Be3 {[%clk 0:02:06.5]} 16...
Rae8 {[%clk 0:02:15.4]} 17. Bf2 {[%clk 0:02:05.7]} 17... Re4 {[%clk 0:02:13.4]}
18. Rfe1 {[%clk 0:02:01.6]} 18... Rxf4 {[%clk 0:02:09.8]} 19. Nf3 {[%clk
0:01:52.2]} 19... a6 {[%clk 0:01:54.9]} 20. Bd4 {[%clk 0:01:35.1]} 20... Re8
{[%clk 0:01:52.5]} 21. Rxe8 {[%clk 0:01:32.4]} 21... Bxe8 {[%clk 0:01:52.3]} 22.
Re1 {[%clk 0:01:32.5]} 22... Kf8 {[%clk 0:01:27.8]} 23. Bxf6 {[%clk 0:01:26.4]}
23... Rxf6 {[%clk 0:01:27.3]} 24. Ng5 {[%clk 0:01:27]} 24... Rf5 {[%clk
0:01:16.9]} 25. Ne6+ {[%clk 0:01:23.3]} 25... Kf7 {[%clk 0:01:16.8]} 26. Nd8+
{[%clk 0:01:00.3]} 26... Kf8 {[%clk 0:01:15.4]} 27. Nxb7 {[%clk 0:01:00.2]}
27... Rb5 {[%clk 0:01:08.7]} 28. Nd8 {[%clk 0:00:59.8]} 28... Rxb2 {[%clk
0:01:06.9]} 29. Ne6+ {[%clk 0:00:59.6]} 29... Kf7 {[%clk 0:01:06.2]} 30. Ng5+
{[%clk 0:00:48.6]} 30... Kf8 {[%clk 0:01:03.8]} 31. Nxh7+ {[%clk 0:00:48.7]}
31... Kg7 {[%clk 0:01:03.3]} 32. Re7+ {[%clk 0:00:43.9]} 32... Bf7 {[%clk
0:01:00.9]} 33. Ng5 {[%clk 0:00:32.9]} 33... Kf6 {[%clk 0:01:00.4]} 34. Rxf7+
{[%clk 0:00:31.6]} 34... Kxg5 {[%clk 0:01:00.3]} 35. Rxc7 {[%clk 0:00:30.8]}
35... Rxa2 {[%clk 0:01:00.7]} 36. Rc6 {[%clk 0:00:28.2]} 36... Rc2 {[%clk
0:00:56.6]} 37. Rxd6 {[%clk 0:00:24.7]} 37... Rxc3 {[%clk 0:00:55.7]} 38. Rxa6
{[%clk 0:00:24.8]} 38... Rc2 {[%clk 0:00:55.4]} 39. h3 {[%clk 0:00:24]} 39...
Kf5 {[%clk 0:00:53.6]} 40. Kh2 {[%clk 0:00:23.9]} 40... Rc3 {[%clk 0:00:52.4]}
41. Ra4 {[%clk 0:00:23.3]} 41... g5 {[%clk 0:00:51.4]} 42. Ra2 {[%clk
0:00:21.2]} 42... Kf4 {[%clk 0:00:50.2]} 43. Rf2+ {[%clk 0:00:20.9]} 43... Ke5
{[%clk 0:00:49.4]} 44. Rf8 {[%clk 0:00:20.6]} 44... Rb3 {[%clk 0:00:47.3]} 45.
Kg1 {[%clk 0:00:20.3]} 45... Ke6 {[%clk 0:00:46.6]} 46. Kf2 {[%clk 0:00:20.5]}
46... Rc3 {[%clk 0:00:46.3]} 47. Rf3 {[%clk 0:00:20.1]} 47... Rc2+ {[%clk
0:00:42.3]} 48. Kg3 {[%clk 0:00:19.6]} 48... Ke5 {[%clk 0:00:42.1]} 49. Rf8
{[%clk 0:00:17.9]} 49... Rc4 {[%clk 0:00:40.7]} 50. Rf2 {[%clk 0:00:15.8]} 50...
Ra4 {[%clk 0:00:39.4]} 51. Rf8 {[%clk 0:00:08.9]} 51... Ke6 {[%clk 0:00:39.1]}
52. Kf3 {[%clk 0:00:06.2]} 52... Ke5 {[%clk 0:00:38.2]} 53. g3 {[%clk
0:00:05.4]} 53... Ke6 {[%clk 0:00:37]} 54. Rc8 {[%clk 0:00:04.7]} 54... Kf5
{[%clk 0:00:36.2]} 55. Rc5+ {[%clk 0:00:04.2]} 55... Kg6 {[%clk 0:00:36.1]} 56.
Rc3 {[%clk 0:00:04.8]} 56... Rb4 {[%clk 0:00:35.4]} 57. Re3 {[%clk 0:00:05.2]}
57... Ra4 {[%clk 0:00:35.2]} 58. Re4 {[%clk 0:00:05.1]} 58... Ra3+ {[%clk
0:00:33.7]} 59. Kg4 {[%clk 0:00:05.2]} 59... Ra5 {[%clk 0:00:32.4]} 60. Rb4
{[%clk 0:00:05.2]} 60... Rc5 {[%clk 0:00:30.5]} 61. Rb6+ {[%clk 0:00:05.1]}
61... Kg7 {[%clk 0:00:28.7]} 62. Kh5 {[%clk 0:00:05.1]} 62... Kf7 {[%clk
0:00:25.6]} 63. g4 {[%clk 0:00:04.3]} 63... Rc3 {[%clk 0:00:24.1]} 64. Rb7+
{[%clk 0:00:01.6]} 64... Kf6 {[%clk 0:00:23.3]} 65. Rb6+ {[%clk 0:00:01.9]}
65... Kf7 {[%clk 0:00:18.5]} 66. Kxg5 {[%clk 0:00:02.8]} 66... Rxh3 {[%clk
0:00:17.8]} 67. Rb7+ {[%clk 0:00:03.3]} 67... Kf8 {[%clk 0:00:15.1]} 68. Kg6
{[%clk 0:00:03.9]} 68... Rg3 {[%clk 0:00:13]} 69. g5 {[%clk 0:00:03.8]} 69...
Ra3 {[%clk 0:00:11.9]} 70. Rb8+ {[%clk 0:00:03.8]} 70... Ke7 {[%clk 0:00:10.8]}
71. Kg7 {[%clk 0:00:04.7]} 71... Rg3 {[%clk 0:00:04.9]} 72. g6 {[%clk
0:00:04.8]} 72... Rg1 {[%clk 0:00:04.6]} 73. Rb3 {[%clk 0:00:03.9]} 73... Rg2
{[%clk 0:00:03.6]} 74. Re3+ {[%clk 0:00:03.4]} 1-0

[Event "*** Titled Tuesday Blitz"]
[Site "Chess.com"]
[Date "2020.05.12"]
[Round "10"]
[White "Nara_Kh"]
[Black "blitzking1729"]
[Result "0-1"]
[WhiteElo "2312"]
[BlackElo "2491"]
[TimeControl "180+1"]
[EndTime "11:55:48 PDT"]
[Termination "blitzking1729 won by checkmate"]

1. e4 {[%clk 0:03:00.9]} 1... d6 {[%clk 0:02:59.2]} 2. d4 {[%clk 0:02:58.8]}
2... Nf6 {[%clk 0:03:00.1]} 3. Nc3 {[%clk 0:02:58.1]} 3... e5 {[%clk 0:03:00.2]}
4. Nf3 {[%clk 0:02:57.9]} 4... Nbd7 {[%clk 0:02:59.8]} 5. Bc4 {[%clk 0:02:57.9]}
5... Be7 {[%clk 0:02:59.9]} 6. O-O {[%clk 0:02:57.3]} 6... O-O {[%clk
0:03:00.3]} 7. a4 {[%clk 0:02:56.6]} 7... c6 {[%clk 0:02:59.8]} 8. h3 {[%clk
0:02:56.6]} 8... Qc7 {[%clk 0:03:00.2]} 9. Ba2 {[%clk 0:02:54.4]} 9... a6 {[%clk
0:02:55.4]} 10. d5 {[%clk 0:02:46.8]} 10... cxd5 {[%clk 0:02:52.3]} 11. Nxd5
{[%clk 0:02:46.4]} 11... Nxd5 {[%clk 0:02:51.8]} 12. Bxd5 {[%clk 0:02:46.2]}
12... Nf6 {[%clk 0:02:51.8]} 13. a5 {[%clk 0:02:38]} 13... Nxd5 {[%clk 0:02:51]}
14. exd5 {[%clk 0:02:37.3]} 14... f5 {[%clk 0:02:49.8]} 15. Be3 {[%clk
0:02:36.1]} 15... Bf6 {[%clk 0:02:46.6]} 16. Bb6 {[%clk 0:02:31.7]} 16... Qf7
{[%clk 0:02:46]} 17. c4 {[%clk 0:02:28.9]} 17... f4 {[%clk 0:02:44.8]} 18. Nd2
{[%clk 0:02:24.9]} 18... Qg6 {[%clk 0:02:39.9]} 19. Qf3 {[%clk 0:02:16.2]} 19...
Bf5 {[%clk 0:02:30.9]} 20. Rfe1 {[%clk 0:02:14.6]} 20... Rac8 {[%clk 0:02:18.8]}
21. Rac1 {[%clk 0:02:00.7]} 21... Be7 {[%clk 0:02:07.6]} 22. Ne4 {[%clk
0:01:57.3]} 22... Bxe4 {[%clk 0:02:04.7]} 23. Rxe4 {[%clk 0:01:53.4]} 23... Qf7
{[%clk 0:01:59.5]} 24. b3 {[%clk 0:01:51.8]} 24... g5 {[%clk 0:01:59.3]} 25. Qd3
{[%clk 0:01:40.7]} 25... h5 {[%clk 0:01:58.9]} 26. f3 {[%clk 0:01:40.1]} 26...
g4 {[%clk 0:01:49.8]} 27. hxg4 {[%clk 0:01:32]} 27... hxg4 {[%clk 0:01:50.7]}
28. fxg4 {[%clk 0:01:32.3]} 28... Bh4 {[%clk 0:01:44.3]} 29. Kf1 {[%clk
0:01:26.2]} 29... f3 {[%clk 0:01:36.2]} 30. gxf3 {[%clk 0:01:24.9]} 30... Qxf3+
{[%clk 0:01:34.4]} 31. Qxf3 {[%clk 0:01:23.7]} 31... Rxf3+ {[%clk 0:01:34.9]}
32. Ke2 {[%clk 0:01:22.9]} 32... Rxb3 {[%clk 0:01:34.5]} 33. g5 {[%clk 0:01:20]}
33... Bg3 {[%clk 0:01:27.5]} 34. Rh1 {[%clk 0:01:16.2]} 34... Bf4 {[%clk
0:01:24.3]} 35. Rh6 {[%clk 0:01:13.4]} 35... Rc3 {[%clk 0:01:07.9]} 36. Rxd6
{[%clk 0:01:06]} 36... R8xc4 {[%clk 0:01:06.7]} 37. Rxc4 {[%clk 0:01:03.3]}
37... Rxc4 {[%clk 0:01:07.6]} 38. g6 {[%clk 0:01:02]} 38... e4 {[%clk
0:01:01.5]} 39. Rd7 {[%clk 0:00:56.8]} 39... Rc2+ {[%clk 0:00:58.2]} 40. Kd1
{[%clk 0:00:52.5]} 40... Rd2+ {[%clk 0:00:56.3]} 41. Ke1 {[%clk 0:00:52.7]}
41... e3 {[%clk 0:00:56.2]} 42. Re7 {[%clk 0:00:36.7]} 42... Rxd5 {[%clk
0:00:42.4]} 43. Rxb7 {[%clk 0:00:36.5]} 43... Rd2 {[%clk 0:00:29.5]} 44. Re7
{[%clk 0:00:36.3]} 44... Rd5 {[%clk 0:00:22.4]} 45. Ke2 {[%clk 0:00:32.8]} 45...
Rd6 {[%clk 0:00:16.7]} 46. g7 {[%clk 0:00:29.7]} 46... Rd2+ {[%clk 0:00:13.4]}
47. Kf3 {[%clk 0:00:29.9]} 47... Rf2+ {[%clk 0:00:12.9]} 48. Kg4 {[%clk
0:00:28.3]} 48... Bh6 {[%clk 0:00:12.7]} 49. Bd4 {[%clk 0:00:25.7]} 49... Rf4+
{[%clk 0:00:12.1]} 50. Kh5 {[%clk 0:00:25]} 50... Rxd4 {[%clk 0:00:12.2]} 51.
Kg6 {[%clk 0:00:25.6]} 51... Rd6+ {[%clk 0:00:12.2]} 52. Kf5 {[%clk 0:00:25]}
52... Bxg7 {[%clk 0:00:12.2]} 53. Rxe3 {[%clk 0:00:25.6]} 53... Rd5+ {[%clk
0:00:12.5]} 54. Ke6 {[%clk 0:00:25.5]} 54... Rxa5 {[%clk 0:00:12.8]} 55. Rg3
{[%clk 0:00:26.2]} 55... Kf8 {[%clk 0:00:12.5]} 56. Rf3+ {[%clk 0:00:26.4]}
56... Ke8 {[%clk 0:00:12.8]} 57. Rb3 {[%clk 0:00:27]} 57... Rb5 {[%clk
0:00:12.1]} 58. Rd3 {[%clk 0:00:26.3]} 58... Rb6+ {[%clk 0:00:12.3]} 59. Kf5
{[%clk 0:00:25.7]} 59... Bf8 {[%clk 0:00:10.6]} 60. Re3+ {[%clk 0:00:25.5]}
60... Kd7 {[%clk 0:00:10.2]} 61. Rd3+ {[%clk 0:00:25.9]} 61... Bd6 {[%clk
0:00:10.1]} 62. Ke4 {[%clk 0:00:26.3]} 62... Kc6 {[%clk 0:00:10.6]} 63. Rc3+
{[%clk 0:00:25.9]} 63... Kb5 {[%clk 0:00:09.4]} 64. Kd5 {[%clk 0:00:26.1]} 64...
Bb4 {[%clk 0:00:09]} 65. Rb3 {[%clk 0:00:26.4]} 65... Ka4 {[%clk 0:00:09.4]} 66.
Rg3 {[%clk 0:00:25.5]} 66... Rd6+ {[%clk 0:00:09.2]} 67. Kc4 {[%clk 0:00:25.8]}
67... Rc6+ {[%clk 0:00:09.5]} 68. Kd5 {[%clk 0:00:26.3]} 68... Rc1 {[%clk
0:00:08.9]} 69. Rg6 {[%clk 0:00:24.9]} 69... a5 {[%clk 0:00:09]} 70. Rg3 {[%clk
0:00:25.4]} 70... Rc8 {[%clk 0:00:07.6]} 71. Kd4 {[%clk 0:00:25.7]} 71... Kb5
{[%clk 0:00:07.3]} 72. Rg5+ {[%clk 0:00:25.4]} 72... Ka4 {[%clk 0:00:06.4]} 73.
Kd3 {[%clk 0:00:25.7]} 73... Kb3 {[%clk 0:00:06.3]} 74. Rg2 {[%clk 0:00:26]}
74... a4 {[%clk 0:00:06.6]} 75. Kd4 {[%clk 0:00:26.6]} 75... Rd8+ {[%clk
0:00:06.7]} 76. Ke4 {[%clk 0:00:26.1]} 76... Rd2 {[%clk 0:00:06.7]} 77. Rg3+
{[%clk 0:00:26.3]} 77... Kb2 {[%clk 0:00:06.8]} 78. Rf3 {[%clk 0:00:26.8]} 78...
a3 {[%clk 0:00:07.1]} 79. Rh3 {[%clk 0:00:27]} 79... a2 {[%clk 0:00:07.6]} 80.
Rh1 {[%clk 0:00:27.4]} 80... a1=Q {[%clk 0:00:07.8]} 81. Rxa1 {[%clk 0:00:26.8]}
81... Kxa1 {[%clk 0:00:08.7]} 82. Ke3 {[%clk 0:00:27.6]} 82... Kb2 {[%clk
0:00:09.3]} 83. Ke4 {[%clk 0:00:28.2]} 83... Kc3 {[%clk 0:00:10.1]} 84. Ke3
{[%clk 0:00:29.1]} 84... Rd4 {[%clk 0:00:10.1]} 85. Ke2 {[%clk 0:00:29.3]} 85...
Bd6 {[%clk 0:00:11]} 86. Ke3 {[%clk 0:00:29.8]} 86... Bf4+ {[%clk 0:00:11]} 87.
Kf3 {[%clk 0:00:30.3]} 87... Bh6 {[%clk 0:00:10.9]} 88. Ke2 {[%clk 0:00:30]}
88... Rd3 {[%clk 0:00:10.6]} 89. Kf2 {[%clk 0:00:30.1]} 89... Kd2 {[%clk
0:00:10.6]} 90. Kg2 {[%clk 0:00:29.9]} 90... Ke2 {[%clk 0:00:11]} 91. Kh2 {[%clk
0:00:30.2]} 91... Kf2 {[%clk 0:00:11.3]} 92. Kh1 {[%clk 0:00:30.8]} 92... Rh3#
{[%clk 0:00:11.9]} 0-1